fUST/lending_fUST_20260609
["ID","MTS","AMOUNT","RATE_DAILY","PERIOD"]
[424503123,1780978242000,-500.0,0.00016438,2]
[424503126,1780978242000,-502.4500276,0.00016438,2]
[424503124,1780978242000,-590.36881894,0.00016438,2]
[424503012,1780978242000,-500.0,0.00016438,2]
[424503082,1780978242000,-500.0,0.00016438,2]
[424503071,1780978242000,-500.0,0.00016438,2]
[424503128,1780978242000,-500.0,0.00016438,2]
[424503062,1780978242000,-500.0,0.00016438,2]
[424503015,1780978242000,-500.0,0.00016438,2]
[424503005,1780978242000,-500.0,0.00016438,2]
[424503013,1780978242000,-500.0,0.00016438,2]
[424503006,1780978242000,-509.17664266,0.00016438,2]
[424503021,1780978242000,-594.93,0.00016438,2]
[424503019,1780978242000,-500.0,0.00016438,2]
[424503023,1780978242000,-290.08861469,0.00016438,2]
[424503034,1780978242000,-500.0,0.00016438,2]
[424503069,1780978242000,-500.0,0.00016438,2]
[424503036,1780978242000,-500.0,0.00016438,2]
[424503026,1780978242000,-195.89298195,0.00016438,2]
[424503037,1780978242000,-500.0,0.00016438,2]
[424503043,1780978242000,-500.0,0.00016438,2]
[424503030,1780978242000,-500.0,0.00016438,2]
[424503039,1780978242000,-603.78,0.00016438,2]
[424503025,1780978242000,-500.0,0.00016438,2]
[424503041,1780978242000,-500.0,0.00016438,2]
[424503067,1780978242000,-500.0,0.00016438,2]
[424503028,1780978242000,-561.79593633,0.00016438,2]
[424503063,1780978242000,-500.0,0.00016438,2]
[424503065,1780978242000,-500.0,0.00016438,2]
[424503052,1780978242000,-500.0,0.00016438,2]
[424503058,1780978242000,-500.0,0.00016438,2]
[424503054,1780978242000,-500.0,0.00016438,2]
[424503056,1780978242000,-500.0,0.00016438,2]
[424503049,1780978242000,-500.0,0.00016438,2]
[424503050,1780978242000,-500.0,0.00016438,2]
[424503047,1780978242000,-1000.0,0.00016438,2]
[424503045,1780978242000,-500.0,0.00016438,2]
[424503032,1780978242000,-500.0,0.00016438,2]
[424503060,1780978242000,-500.0,0.00016438,2]
[424503199,1780978243000,-501.18999962,0.00016438,2]
[424503212,1780978243000,-620.29224572,0.00016438,2]
[424503214,1780978243000,-531.24,0.00016438,2]
[424503205,1780978243000,-500.0,0.00016438,2]
[424503203,1780978243000,-500.0,0.00016438,2]
[424503193,1780978243000,-518.12,0.00016438,2]
[424503197,1780978243000,-500.0,0.00016438,2]
[424503201,1780978243000,-500.0,0.00016438,2]
[424503208,1780978243000,-279.51592215,0.00016438,2]
[424503206,1780978243000,-500.0,0.00016438,2]
[424503195,1780978243000,-503.0326896,0.00016438,2]
[424503210,1780978243000,-500.0,0.00016438,2]
[424503216,1780978243000,-500.0,0.00016438,2]
[424503243,1780978243000,-500.0,0.00016438,2]
[424503232,1780978243000,-500.0,0.00016438,2]
[424503231,1780978243000,-500.0,0.00016438,2]
[424503234,1780978243000,-500.0,0.00016438,2]
[424503220,1780978243000,-500.0,0.00016438,2]
[424503238,1780978243000,-643.55,0.00016438,2]
[424503236,1780978243000,-501.39850813,0.00016438,2]
[424503222,1780978243000,-500.0,0.00016438,2]
[424503240,1780978243000,-541.55,0.00016438,2]
[424503225,1780978243000,-500.0,0.00016438,2]
[424503223,1780978243000,-500.0,0.00016438,2]
[424503229,1780978243000,-500.0,0.00016438,2]
[424503227,1780978243000,-500.0,0.00016438,2]
[424503242,1780978243000,-500.0,0.00016438,2]
[424503191,1780978243000,-500.0,0.00016438,2]
[424503218,1780978243000,-500.0,0.00016438,2]
[424503183,1780978243000,-500.0,0.00016438,2]
[424503154,1780978243000,-500.0,0.00016438,2]
[424503189,1780978243000,-500.0,0.00016438,2]
[424503247,1780978243000,-500.0,0.00016438,2]
[424503138,1780978243000,-500.0,0.00016438,2]
[424503132,1780978243000,-500.0,0.00016438,2]
[424503130,1780978243000,-500.0,0.00016438,2]
[424503134,1780978243000,-500.0,0.00016438,2]
[424503136,1780978243000,-500.0,0.00016438,2]
[424503142,1780978243000,-500.0,0.00016438,2]
[424503139,1780978243000,-500.0,0.00016438,2]
[424503145,1780978243000,-466.17672559,0.00016438,2]
[424503143,1780978243000,-500.0,0.00016438,2]
[424503147,1780978243000,-500.0,0.00016438,2]
[424503149,1780978243000,-500.0,0.00016438,2]
[424503150,1780978243000,-500.0,0.00016438,2]
[424503158,1780978243000,-500.0,0.00016438,2]
[424503160,1780978243000,-500.0,0.00016438,2]
[424503156,1780978243000,-1609.79,0.00016438,2]
[424503152,1780978243000,-500.0,0.00016438,2]
[424503162,1780978243000,-614.00484412,0.00016438,2]
[424503164,1780978243000,-500.0,0.00016438,2]
[424503166,1780978243000,-591.27,0.00016438,2]
[424503168,1780978243000,-700.54,0.00016438,2]
[424503171,1780978243000,-500.0,0.00016438,2]
[424503175,1780978243000,-500.0,0.00016438,2]
[424503174,1780978243000,-500.0,0.00016438,2]
[424503170,1780978243000,-500.0,0.00016438,2]
[424503177,1780978243000,-500.0,0.00016438,2]
[424503179,1780978243000,-500.0,0.00016438,2]
[424503185,1780978243000,-527.04576414,0.00016438,2]
[424503187,1780978243000,-500.0,0.00016438,2]
[424503181,1780978243000,-543.92300374,0.00016438,2]
[424503250,1780978243000,-500.0,0.00016438,2]
[424503367,1780978243000,-500.0,0.00016711,2]
[424503249,1780978243000,-500.0,0.00016438,2]
[424503316,1780978243000,-500.0,0.00016438,2]
[424503314,1780978243000,-500.0,0.00016438,2]
[424503318,1780978243000,-500.0,0.00016438,2]
[424503329,1780978243000,-500.0,0.00016438,2]
[424503321,1780978243000,-500.0,0.00016438,2]
[424503319,1780978243000,-500.0,0.00016438,2]
[424503331,1780978243000,-500.0,0.00016438,2]
[424503327,1780978243000,-523.60502415,0.00016438,2]
[424503325,1780978243000,-500.0,0.00016438,2]
[424503333,1780978243000,-500.0,0.00016438,2]
[424503335,1780978243000,-500.35395487,0.00016438,2]
[424503323,1780978243000,-500.0,0.00016438,2]
[424503337,1780978243000,-500.0,0.00016438,2]
[424503339,1780978243000,-500.0,0.00016438,2]
[424503340,1780978243000,-500.0,0.00016438,2]
[424503342,1780978243000,-500.59939282,0.00016438,2]
[424503344,1780978243000,-500.0,0.00016438,2]
[424503348,1780978243000,-538.54417453,0.00016438,2]
[424503346,1780978243000,-500.0,0.00016438,2]
[424503350,1780978243000,-11441.7,0.00016438,2]
[424503352,1780978243000,-500.0,0.00016438,2]
[424503356,1780978243000,-559.02519097,0.00016438,2]
[424503358,1780978243000,-500.33327334,0.00016438,2]
[424503360,1780978243000,-500.0,0.00016438,2]
[424503362,1780978243000,-501.53118933,0.00016438,2]
[424503364,1780978243000,-500.0,0.00016438,2]
[424503366,1780978243000,-500.0,0.00016711,2]
[424503245,1780978243000,-500.0,0.00016438,2]
[424503370,1780978243000,-500.0,0.00016711,2]
[424503310,1780978243000,-500.0,0.00016438,2]
[424503312,1780978243000,-500.0,0.00016438,2]
[424503369,1780978243000,-500.0,0.00016711,2]
[424503299,1780978243000,-500.0,0.00016438,2]
[424503254,1780978243000,-500.0,0.00016438,2]
[424503257,1780978243000,-515.96953566,0.00016438,2]
[424503252,1780978243000,-500.0,0.00016438,2]
[424503258,1780978243000,-500.0,0.00016438,2]
[424503262,1780978243000,-500.0,0.00016438,2]
[424503260,1780978243000,-500.0,0.00016438,2]
[424503264,1780978243000,-500.0,0.00016438,2]
[424503265,1780978243000,-500.0,0.00016438,2]
[424503306,1780978243000,-500.46965094,0.00016438,2]
[424503273,1780978243000,-500.0,0.00016438,2]
[424503271,1780978243000,-500.0,0.00016438,2]
[424503269,1780978243000,-500.0,0.00016438,2]
[424503274,1780978243000,-500.7950514,0.00016438,2]
[424503276,1780978243000,-500.0,0.00016438,2]
[424503267,1780978243000,-501.60519182,0.00016438,2]
[424503284,1780978243000,-500.0,0.00016438,2]
[424503304,1780978243000,-448.10652128,0.00016438,2]
[424503278,1780978243000,-596.39,0.00016438,2]
[424503302,1780978243000,-500.0,0.00016438,2]
[424503300,1780978243000,-500.0,0.00016438,2]
[424503308,1780978243000,-500.0,0.00016438,2]
[424503295,1780978243000,-500.0,0.00016438,2]
[424503297,1780978243000,-500.0,0.00016438,2]
[424503291,1780978243000,-500.0,0.00016438,2]
[424503289,1780978243000,-500.0,0.00016438,2]
[424503287,1780978243000,-500.0,0.00016438,2]
[424503285,1780978243000,-500.0,0.00016438,2]
[424503282,1780978243000,-500.0,0.00016438,2]
[424503280,1780978243000,-500.0,0.00016438,2]
[424503293,1780978243000,-500.0,0.00016438,2]
[424503436,1780978244000,-500.83407919,0.00016712,2]
[424503432,1780978244000,-227.1814728,0.00016712,2]
[424503429,1780978244000,-643.38391645,0.00016712,2]
[424503434,1780978244000,-568.68925278,0.00016712,2]
[424503427,1780978244000,-501.28081915,0.00016712,2]
[424503414,1780978244000,-500.0,0.00016712,2]
[424503425,1780978244000,-500.0,0.00016712,2]
[424503423,1780978244000,-500.0,0.00016712,2]
[424503420,1780978244000,-501.15530205,0.00016712,2]
[424503418,1780978244000,-500.63326193,0.00016712,2]
[424503416,1780978244000,-430.37893217,0.00016712,2]
[424503421,1780978244000,-500.0,0.00016712,2]
[424503430,1780978244000,-500.0,0.00016712,2]
[424503459,1780978244000,-500.85729483,0.00016712,2]
[424503439,1780978244000,-420.07574448,0.00016712,2]
[424503448,1780978244000,-638.25719348,0.00016712,2]
[424503453,1780978244000,-500.90608485,0.00016712,2]
[424503451,1780978244000,-500.83235906,0.00016712,2]
[424503455,1780978244000,-500.0,0.00016712,2]
[424503450,1780978244000,-463.09248166,0.00016712,2]
[424503438,1780978244000,-500.0,0.00016712,2]
[424503441,1780978244000,-500.0,0.00016712,2]
[424503446,1780978244000,-500.0,0.00016712,2]
[424503444,1780978244000,-500.69726581,0.00016712,2]
[424503440,1780978244000,-500.0,0.00016712,2]
[424503457,1780978244000,-500.0,0.00016712,2]
[424503413,1780978244000,-2007.4974,0.00016712,2]
[424503437,1780978244000,-500.0,0.00016712,2]
[424503411,1780978244000,-513.3434858,0.00016711,2]
[424503381,1780978244000,-500.0,0.00016711,2]
[424503399,1780978244000,-500.0,0.00016711,2]
[424503461,1780978244000,-246.93449599,0.00016712,2]
[424503373,1780978244000,-500.0,0.00016711,2]
[424503375,1780978244000,-500.0,0.00016711,2]
[424503371,1780978244000,-500.0,0.00016711,2]
[424503374,1780978244000,-500.0,0.00016711,2]
[424503376,1780978244000,-500.0,0.00016711,2]
[424503372,1780978244000,-500.0,0.00016711,2]
[424503377,1780978244000,-500.0,0.00016711,2]
[424503378,1780978244000,-500.0,0.00016711,2]
[424503382,1780978244000,-500.0,0.00016711,2]
[424503380,1780978244000,-371.34371008,0.00016711,2]
[424503386,1780978244000,-500.0,0.00016711,2]
[424503379,1780978244000,-500.0,0.00016711,2]
[424503396,1780978244000,-500.0,0.00016711,2]
[424503389,1780978244000,-500.0,0.00016711,2]
[424503388,1780978244000,-500.0,0.00016711,2]
[424503383,1780978244000,-500.0,0.00016711,2]
[424503385,1780978244000,-500.0,0.00016711,2]
[424503387,1780978244000,-500.0,0.00016711,2]
[424503392,1780978244000,-500.0,0.00016711,2]
[424503391,1780978244000,-500.0,0.00016711,2]
[424503407,1780978244000,-500.0,0.00016711,2]
[424503394,1780978244000,-500.0,0.00016711,2]
[424503405,1780978244000,-500.0,0.00016711,2]
[424503398,1780978244000,-500.0,0.00016711,2]
[424503401,1780978244000,-500.0,0.00016711,2]
[424503409,1780978244000,-608.13659153,0.00016711,2]
[424503403,1780978244000,-500.0,0.00016711,2]
[424503384,1780978244000,-500.0,0.00016711,2]
[424503465,1780978244000,-500.59012581,0.00016712,2]
[424503442,1780978244000,-500.0,0.00016712,2]
[424503468,1780978244000,-500.8513528,0.00016712,2]
[424503520,1780978244000,-500.0,0.00016712,2]
[424503524,1780978244000,-500.85326879,0.00016712,2]
[424503534,1780978244000,-500.76079208,0.00016712,2]
[424503535,1780978244000,-500.0,0.00016712,2]
[424503536,1780978244000,-500.62391042,0.00016712,2]
[424503526,1780978244000,-501.79355329,0.00016712,2]
[424503525,1780978244000,-500.59583428,0.00016712,2]
[424503528,1780978244000,-529.85,0.00016712,2]
[424503527,1780978244000,-501.18421318,0.00016712,2]
[424503530,1780978244000,-500.0,0.00016712,2]
[424503529,1780978244000,-500.45516624,0.00016712,2]
[424503531,1780978244000,-500.84962535,0.00016712,2]
[424503532,1780978244000,-500.79505199,0.00016712,2]
[424503517,1780978244000,-500.74922695,0.00016712,2]
[424503533,1780978244000,-500.65758825,0.00016712,2]
[424503549,1780978244000,-501.5105233,0.00016712,2]
[424503539,1780978244000,-500.0,0.00016712,2]
[424503550,1780978244000,-981.33,0.00016712,2]
[424503544,1780978244000,-501.06127638,0.00016712,2]
[424503542,1780978244000,-500.0,0.00016712,2]
[424503541,1780978244000,-500.0,0.00016712,2]
[424503538,1780978244000,-500.0,0.00016712,2]
[424503540,1780978244000,-501.45432813,0.00016712,2]
[424503545,1780978244000,-361.0853195,0.00016712,2]
[424503543,1780978244000,-500.71564041,0.00016712,2]
[424503547,1780978244000,-500.50511322,0.00016712,2]
[424503546,1780978244000,-500.0,0.00016712,2]
[424503548,1780978244000,-500.0,0.00016712,2]
[424503537,1780978244000,-500.85805438,0.00016712,2]
[424503519,1780978244000,-500.0,0.00016712,2]
[424503518,1780978244000,-500.0,0.00016712,2]
[424503513,1780978244000,-500.50801805,0.00016712,2]
[424503467,1780978244000,-232.46693596,0.00016712,2]
[424503475,1780978244000,-501.42383525,0.00016712,2]
[424503479,1780978244000,-500.6411204,0.00016712,2]
[424503470,1780978244000,-500.0,0.00016712,2]
[424503477,1780978244000,-500.80837305,0.00016712,2]
[424503551,1780978244000,-500.0,0.00016712,2]
[424503472,1780978244000,-500.90109327,0.00016712,2]
[424503474,1780978244000,-500.0,0.00016712,2]
[424503481,1780978244000,-501.5261822,0.00016712,2]
[424503483,1780978244000,-500.0,0.00016712,2]
[424503485,1780978244000,-500.0,0.00016712,2]
[424503523,1780978244000,-500.0,0.00016712,2]
[424503487,1780978244000,-539.70864502,0.00016712,2]
[424503492,1780978244000,-625.77420247,0.00016712,2]
[424503488,1780978244000,-546.1792197,0.00016712,2]
[424503494,1780978244000,-634.87,0.00016712,2]
[424503515,1780978244000,-500.0,0.00016712,2]
[424503505,1780978244000,-500.0,0.00016712,2]
[424503490,1780978244000,-500.0,0.00016712,2]
[424503511,1780978244000,-273.38283945,0.00016712,2]
[424503510,1780978244000,-500.0,0.00016712,2]
[424503508,1780978244000,-320.06730315,0.00016712,2]
[424503522,1780978244000,-500.0,0.00016712,2]
[424503503,1780978244000,-500.0,0.00016712,2]
[424503497,1780978244000,-534.17048462,0.00016712,2]
[424503499,1780978244000,-500.0,0.00016712,2]
[424503496,1780978244000,-500.62125987,0.00016712,2]
[424503501,1780978244000,-500.63910526,0.00016712,2]
[424503506,1780978244000,-500.0,0.00016712,2]
[424503463,1780978244000,-500.0,0.00016712,2]
[424503558,1780978245000,-500.0,0.00016712,2]
[424503553,1780978245000,-500.0,0.00016712,2]
[424503552,1780978245000,-577.61725417,0.00016712,2]
[424503554,1780978245000,-500.0,0.00016712,2]
[424503556,1780978245000,-500.0,0.00016712,2]
[424503557,1780978245000,-501.05956831,0.00016712,2]
[424503555,1780978245000,-500.0,0.00016712,2]
[424503559,1780978245000,-500.0,0.00016712,2]
[424503563,1780978245000,-501.21640312,0.00016712,2]
[424503564,1780978245000,-500.56159707,0.00016712,2]
[424503561,1780978245000,-500.0,0.00016712,2]
[424503565,1780978245000,-500.0,0.00016712,2]
[424503571,1780978245000,-500.0,0.00016712,2]
[424503570,1780978245000,-500.0,0.00016712,2]
[424503560,1780978245000,-500.0,0.00016712,2]
[424503732,1780978246000,-500.0,0.00016712,2]
[424503731,1780978246000,-501.25329112,0.00016712,2]
[424503743,1780978246000,-500.74064865,0.00016712,2]
[424503741,1780978246000,-500.0,0.00016712,2]
[424503738,1780978246000,-500.0,0.00016712,2]
[424503719,1780978246000,-500.0,0.00016712,2]
[424503729,1780978246000,-500.0,0.00016712,2]
[424503718,1780978246000,-501.85128235,0.00016712,2]
[424503734,1780978246000,-500.0,0.00016712,2]
[424503721,1780978246000,-1609.79,0.00016712,2]
[424503720,1780978246000,-500.0,0.00016712,2]
[424503739,1780978246000,-518.12,0.00016712,2]
[424503745,1780978246000,-500.0,0.00016712,2]
[424503744,1780978246000,-500.0,0.00016712,2]
[424503736,1780978246000,-500.0,0.00016712,2]
[424503728,1780978246000,-501.28277416,0.00016712,2]
[424503733,1780978246000,-500.84424587,0.00016712,2]
[424503746,1780978246000,-531.24,0.00016712,2]
[424503747,1780978246000,-500.0,0.00016712,2]
[424503751,1780978246000,-500.0,0.00016712,2]
[424503749,1780978246000,-500.0,0.00016712,2]
[424503748,1780978246000,-500.0,0.00016712,2]
[424503752,1780978246000,-500.0,0.00016712,2]
[424503757,1780978246000,-643.55,0.00016712,2]
[424503690,1780978246000,-500.0,0.00016712,2]
[424503758,1780978246000,-541.55,0.00016712,2]
[424503754,1780978246000,-500.0,0.00016712,2]
[424503756,1780978246000,-500.0,0.00016712,2]
[424503742,1780978246000,-500.0,0.00016712,2]
[424503722,1780978246000,-500.51821666,0.00016712,2]
[424503716,1780978246000,-500.0,0.00016712,2]
[424503726,1780978246000,-501.58949832,0.00016712,2]
[424503691,1780978246000,-501.07384592,0.00016712,2]
[424503697,1780978246000,-500.0,0.00016712,2]
[424503698,1780978246000,-500.0,0.00016712,2]
[424503755,1780978246000,-501.48698559,0.00016712,2]
[424503693,1780978246000,-500.0,0.00016712,2]
[424503695,1780978246000,-582.59,0.00016712,2]
[424503696,1780978246000,-1040.78,0.00016712,2]
[424503694,1780978246000,-500.0,0.00016712,2]
[424503692,1780978246000,-771.5,0.00016712,2]
[424503700,1780978246000,-500.0,0.00016712,2]
[424503699,1780978246000,-500.0,0.00016712,2]
[424503702,1780978246000,-168.47193381,0.00016712,2]
[424503703,1780978246000,-284.40932602,0.00016712,2]
[424503727,1780978246000,-500.0,0.00016712,2]
[424503705,1780978246000,-554.39,0.00016712,2]
[424503707,1780978246000,-440.98674199,0.00016712,2]
[424503701,1780978246000,-501.78877922,0.00016712,2]
[424503713,1780978246000,-501.09865601,0.00016712,2]
[424503704,1780978246000,-500.99406648,0.00016712,2]
[424503706,1780978246000,-501.14924241,0.00016712,2]
[424503708,1780978246000,-500.0,0.00016712,2]
[424503709,1780978246000,-500.0,0.00016712,2]
[424503710,1780978246000,-500.0,0.00016712,2]
[424503711,1780978246000,-500.0,0.00016712,2]
[424503724,1780978246000,-591.27,0.00016712,2]
[424503725,1780978246000,-700.54,0.00016712,2]
[424503723,1780978246000,-501.74122607,0.00016712,2]
[424503714,1780978246000,-457.15142541,0.00016712,2]
[424503712,1780978246000,-501.49587612,0.00016712,2]
[424503753,1780978246000,-500.0,0.00016712,2]
[424503750,1780978246000,-501.02748593,0.00016712,2]
[424503770,1780978246000,-500.0,0.00016712,2]
[424503792,1780978246000,-501.75023195,0.00016712,2]
[424503793,1780978246000,-500.0,0.00016712,2]
[424503808,1780978246000,-500.0,0.00016712,2]
[424503788,1780978246000,-500.0,0.00016712,2]
[424503795,1780978246000,-500.0,0.00016712,2]
[424503811,1780978246000,-500.53062466,0.00016712,2]
[424503813,1780978246000,-500.0,0.00016712,2]
[424503815,1780978246000,-501.78197684,0.00016712,2]
[424503816,1780978246000,-500.0,0.00016712,2]
[424503817,1780978246000,-500.0,0.00016712,2]
[424503821,1780978246000,-500.0,0.00016712,2]
[424503819,1780978246000,-11441.7,0.00016712,2]
[424503823,1780978246000,-504.97779851,0.00016712,2]
[424503786,1780978246000,-500.0,0.00016712,2]
[424503825,1780978246000,-500.0,0.00016712,2]
[424503840,1780978246000,-462.98517617,0.00016986,2]
[424503838,1780978246000,-500.0,0.00016986,2]
[424503842,1780978246000,-500.0,0.00016986,2]
[424503844,1780978246000,-500.0,0.00016986,2]
[424503828,1780978246000,-2007.4974,0.00016986,2]
[424503830,1780978246000,-500.0,0.00016986,2]
[424503832,1780978246000,-500.0,0.00016986,2]
[424503834,1780978246000,-500.0,0.00016986,2]
[424503836,1780978246000,-635.72414363,0.00016986,2]
[424503847,1780978246000,-500.0,0.00016986,2]
[424503849,1780978246000,-500.0,0.00016986,2]
[424503850,1780978246000,-500.0,0.00016986,2]
[424503769,1780978246000,-500.8453225,0.00016712,2]
[424503826,1780978246000,-206.64338961,0.00016758,2]
[424503790,1780978246000,-500.72770281,0.00016712,2]
[424503846,1780978246000,-272.79787969,0.00016986,2]
[424503802,1780978246000,-500.0,0.00016712,2]
[424503771,1780978246000,-500.63689953,0.00016712,2]
[424503768,1780978246000,-500.0,0.00016712,2]
[424503760,1780978246000,-501.16213745,0.00016712,2]
[424503765,1780978246000,-500.82499252,0.00016712,2]
[424503761,1780978246000,-501.67273331,0.00016712,2]
[424503762,1780978246000,-500.0,0.00016712,2]
[424503764,1780978246000,-159.09,0.00016712,2]
[424503767,1780978246000,-500.0,0.00016712,2]
[424503766,1780978246000,-500.0,0.00016712,2]
[424503763,1780978246000,-500.0,0.00016712,2]
[424503759,1780978246000,-500.0,0.00016712,2]
[424503772,1780978246000,-500.70318786,0.00016712,2]
[424503774,1780978246000,-500.0,0.00016712,2]
[424503776,1780978246000,-596.39,0.00016712,2]
[424503804,1780978246000,-501.65923145,0.00016712,2]
[424503775,1780978246000,-552.72345859,0.00016712,2]
[424503777,1780978246000,-500.0,0.00016712,2]
[424503799,1780978246000,-500.0,0.00016712,2]
[424503806,1780978246000,-500.0,0.00016712,2]
[424503800,1780978246000,-500.0,0.00016712,2]
[424503787,1780978246000,-500.0,0.00016712,2]
[424503783,1780978246000,-606.64456969,0.00016712,2]
[424503797,1780978246000,-500.0,0.00016712,2]
[424503784,1780978246000,-501.39995497,0.00016712,2]
[424503782,1780978246000,-500.0,0.00016712,2]
[424503785,1780978246000,-500.0,0.00016712,2]
[424503779,1780978246000,-500.0,0.00016712,2]
[424503778,1780978246000,-506.87787743,0.00016712,2]
[424503780,1780978246000,-500.0,0.00016712,2]
[424503781,1780978246000,-500.0,0.00016712,2]
[424503859,1780978247000,-500.0,0.00016986,2]
[424503867,1780978247000,-500.0,0.00016986,2]
[424503865,1780978247000,-500.0,0.00016986,2]
[424503866,1780978247000,-500.0,0.00016986,2]
[424503863,1780978247000,-500.0,0.00016986,2]
[424503858,1780978247000,-500.0,0.00016986,2]
[424503860,1780978247000,-394.88045923,0.00016986,2]
[424503851,1780978247000,-406.25919282,0.00016986,2]
[424503856,1780978247000,-500.0,0.00016986,2]
[424503852,1780978247000,-500.0,0.00016986,2]
[424503853,1780978247000,-500.0,0.00016986,2]
[424503862,1780978247000,-276.77410041,0.00016986,2]
[424503861,1780978247000,-500.0,0.00016986,2]
[424503854,1780978247000,-259.27897332,0.00016986,2]
[424503864,1780978247000,-343.81789834,0.00016986,2]
[424503857,1780978247000,-634.87,0.00016986,2]
[424503870,1780978247000,-500.0,0.00016986,2]
[424503855,1780978247000,-500.0,0.00016986,2]
[424503868,1780978247000,-529.85,0.00016986,2]
[424503869,1780978247000,-500.0,0.00016986,2]
[424503884,1780978247000,-500.0,0.00016986,2]
[424503886,1780978247000,-500.69971792,0.00016986,2]
[424503887,1780978247000,-500.0,0.00016986,2]
[424503883,1780978247000,-500.0,0.00016986,2]
[424503882,1780978247000,-500.0,0.00016986,2]
[424503881,1780978247000,-500.73533205,0.00016986,2]
[424503879,1780978247000,-352.40825221,0.00016986,2]
[424503885,1780978247000,-500.8515425,0.00016986,2]
[424503878,1780978247000,-628.92174779,0.00016986,2]
[424503871,1780978247000,-500.0,0.00016986,2]
[424503880,1780978247000,-396.84015849,0.00016986,2]
[424503873,1780978247000,-437.74662915,0.00016986,2]
[424503875,1780978247000,-500.0,0.00016986,2]
[424503872,1780978247000,-500.88886185,0.00016986,2]
[424503876,1780978247000,-500.0,0.00016986,2]
[424503877,1780978247000,-500.0,0.00016986,2]
[424503874,1780978247000,-62.25337085,0.00016986,2]
[424503888,1780978248000,-500.0,0.00016986,2]
[424503912,1780978248000,-500.0,0.00016986,2]
[424503918,1780978248000,-501.78028592,0.00016986,2]
[424503922,1780978248000,-582.76426853,0.00016986,2]
[424503917,1780978248000,-500.0,0.00016986,2]
[424503923,1780978248000,-500.0,0.00016986,2]
[424503920,1780978248000,-500.0,0.00016986,2]
[424503925,1780978248000,-500.0,0.00016986,2]
[424503936,1780978248000,-500.9904996,0.00016986,2]
[424503933,1780978248000,-501.52754904,0.00016986,2]
[424503934,1780978248000,-500.68121395,0.00016986,2]
[424503928,1780978248000,-500.0,0.00016986,2]
[424503935,1780978248000,-500.0,0.00016986,2]
[424503926,1780978248000,-500.67988072,0.00016986,2]
[424503930,1780978248000,-500.0,0.00016986,2]
[424503927,1780978248000,-500.0,0.00016986,2]
[424503931,1780978248000,-334.51336589,0.00016986,2]
[424503932,1780978248000,-1000.0,0.00016986,2]
[424503929,1780978248000,-502.01838277,0.00016986,2]
[424503914,1780978248000,-501.40356823,0.00016986,2]
[424503938,1780978248000,-500.0,0.00016986,2]
[424503948,1780978248000,-500.0,0.00016986,2]
[424503949,1780978248000,-500.0,0.00016986,2]
[424503924,1780978248000,-500.91547733,0.00016986,2]
[424503913,1780978248000,-500.0,0.00016986,2]
[424503909,1780978248000,-500.81318042,0.00016986,2]
[424503911,1780978248000,-500.0,0.00016986,2]
[424503942,1780978248000,-500.0,0.00016986,2]
[424503889,1780978248000,-501.26771683,0.00016986,2]
[424503898,1780978248000,-500.0,0.00016986,2]